fUST/lending_fUST_20250928
["ID","MTS","AMOUNT","RATE_DAILY","PERIOD"]
[388101388,1759014652572,-480.0,0.00035616,9]
[388101390,1759014652581,-6258.6,0.00035616,9]
[388101392,1759014652590,-151.0,0.00035616,7]
[388101394,1759014652599,-151.0,0.00035616,7]
[388101396,1759014652609,-151.0,0.00035616,7]
[388101398,1759014652618,-480.0,0.00035616,2]
[388101400,1759014652628,-151.0,0.00035616,7]
[388101402,1759014652640,-151.0,0.00035616,7]
[388101404,1759014652649,-151.0,0.00035616,7]
[388101406,1759014652659,-480.0,0.00035616,9]
[388101408,1759014652668,-151.0,0.00035616,7]
[388101410,1759014652677,-480.0,0.00035616,9]
[388101412,1759014652686,-1265.8,0.00035616,9]
[388101414,1759014652696,-151.0,0.00035616,7]
[388101416,1759014652707,-151.0,0.00035616,7]
[388101418,1759014652717,-480.0,0.00035616,9]
[388101420,1759014652726,-4508.02,0.00035616,9]
[388101422,1759014652735,-2087.35,0.00035616,9]
[388101424,1759014652744,-480.0,0.00035616,9]
[388101442,1759014652904,-1080.51,0.00035616,9]
[388101445,1759014652920,-480.0,0.00035616,9]
[388101447,1759014652930,-971.33,0.00035616,9]
[388101449,1759014652939,-566.3,0.00035616,9]
[388101451,1759014652949,-480.0,0.00035616,9]
[388101453,1759014652958,-1229.168736,0.00035616,7]
[388101455,1759014652967,-1229.168736,0.00035616,7]
[388101457,1759014652977,-1229.168736,0.00035616,7]
[388101459,1759014652985,-829.49,0.00035616,9]
[388101461,1759014652996,-829.49,0.00035616,9]
[388101463,1759014653005,-678.12,0.00035616,9]
[388101465,1759014653015,-1229.168736,0.00035616,7]
[388101467,1759014653025,-829.49,0.00035616,9]
[388101469,1759014653034,-4789.97,0.00035616,9]
[388101471,1759014653044,-1229.168736,0.00035616,7]
[388101473,1759014653053,-829.49,0.00035616,9]
[388101475,1759014653063,-829.49,0.00035616,9]
[388101477,1759014653073,-1229.168736,0.00035616,7]
[388101479,1759014653083,-829.49,0.00035616,9]
[388101481,1759014653092,-829.49,0.00035616,9]
[388101483,1759014653101,-829.49,0.00035616,9]
[388101485,1759014653111,-480.0,0.00035616,9]
[388101487,1759014653120,-717.33206193,0.00035616,9]
[388101527,1759014653498,-112.15793807,0.00035616,9]
[388101529,1759014653507,-1229.168736,0.00035616,7]
[388101531,1759014653517,-829.49,0.00035616,9]
[388101533,1759014653526,-1229.168736,0.00035616,7]
[388101535,1759014653536,-480.0,0.00035616,9]
[388101537,1759014653545,-829.49,0.00035616,9]
[388101539,1759014653554,-1229.168736,0.00035616,7]
[388101541,1759014653565,-480.0,0.00035616,9]
[388101543,1759014653575,-829.49,0.00035616,9]
[388101545,1759014653585,-829.49,0.00035616,9]
[388101547,1759014653594,-480.0,0.00035616,9]
[388101548,1759014653603,-829.49,0.00035616,9]
[388101549,1759014653613,-829.49,0.00035616,9]
[388101550,1759014653622,-1229.168736,0.00035616,7]
[388101551,1759014653631,-829.49,0.00035616,9]
[388101552,1759014653645,-1229.168736,0.00035616,7]
[388101553,1759014653655,-829.49,0.00035616,9]
[388101554,1759014653665,-1229.168746,0.00035616,7]
[388101555,1759014653674,-829.49,0.00035616,9]
[388101556,1759014653684,-719.88,0.00035616,9]
[388101557,1759014653693,-829.49,0.00035616,9]
[388101558,1759014653702,-829.49,0.00035616,9]
[388101559,1759014653713,-829.49,0.00035616,9]
[388101561,1759014653722,-879.85,0.00035616,9]
[388101562,1759014653732,-829.49,0.00035616,9]
[388101563,1759014653741,-829.49,0.00035616,9]
[388101565,1759014653751,-829.562026,0.00035616,9]
[388101567,1759014653760,-589.91,0.00035616,9]
[388101569,1759014653770,-166.3918094,0.00035616,9]
[388101571,1759014653780,-483.61,0.00035616,9]
[388101573,1759014653789,-480.0,0.00035616,9]
[388101575,1759014653799,-3167.55,0.00035616,9]
[388101577,1759014653808,-480.0,0.00035616,9]
[388101579,1759014653818,-800.03,0.00035616,9]
[388101581,1759014653827,-480.0,0.00035616,9]
[388101583,1759014653837,-480.0,0.00035616,9]
[388101585,1759014653846,-509.9,0.00035616,9]
[388101587,1759014653856,-1278.18,0.00035616,9]
[388101589,1759014653866,-1178.77,0.00035616,9]
[388101591,1759014653875,-480.0,0.00035616,9]
[388101593,1759014653893,-2315.52,0.00035616,9]
[388101595,1759014653904,-543.73,0.00035616,9]
[388101597,1759014653913,-1075.95,0.00035616,9]
[388101599,1759014653922,-465.291891,0.00035616,7]
[388101600,1759014653931,-480.0,0.00035616,9]
[388101603,1759014653941,-465.291891,0.00035616,7]
[388101605,1759014653951,-465.291891,0.00035616,7]
[388101606,1759014653960,-465.291891,0.00035616,7]
[388101609,1759014653969,-465.291891,0.00035616,7]
[388101611,1759014653979,-465.291891,0.00035616,7]
[388101613,1759014653988,-529.31,0.00035616,9]
[388101615,1759014653998,-465.291891,0.00035616,7]
[388101616,1759014654007,-151.0,0.00035616,7]
[388101618,1759014654017,-1226.34,0.00035616,9]
[388101621,1759014654027,-465.291891,0.00035616,7]
[388101623,1759014654037,-2986.45,0.00035616,9]
[388101625,1759014654047,-151.0,0.00035616,7]
[388101626,1759014654057,-480.0,0.00035616,9]
[388101629,1759014654067,-465.291891,0.00035616,7]
[388101630,1759014654077,-151.0,0.00035616,7]
[388101632,1759014654087,-480.0,0.00035616,9]
[388101635,1759014654098,-480.0,0.00035616,9]
[388101637,1759014654107,-465.291891,0.00035616,7]
[388101639,1759014654117,-465.291891,0.00035616,7]
[388101641,1759014654127,-465.291897,0.00035616,7]
[388101643,1759014654138,-2985.54,0.00035616,9]
[388101645,1759014654148,-484.64,0.00035616,9]
[388101647,1759014654157,-480.0,0.00035616,9]
[388101649,1759014654167,-617.71,0.00035616,9]
[388101651,1759014654176,-480.0,0.00035616,9]
[388101653,1759014654185,-480.0,0.00035616,9]
[388101655,1759014654195,-500.0,0.00035616,9]
[388101656,1759014654204,-1342.46,0.00035616,9]
[388101659,1759014654214,-903.91,0.00035616,9]
[388101661,1759014654224,-500.0,0.00035616,9]
[388101662,1759014654234,-500.0,0.00035616,9]
[388101665,1759014654244,-500.0,0.00035616,9]
[388101667,1759014654253,-480.0,0.00035616,9]
[388101669,1759014654263,-683.75,0.00035616,9]
[388101671,1759014654273,-500.0,0.00035616,9]
[388101673,1759014654283,-500.0,0.00035616,9]
[388101674,1759014654292,-1412.39,0.00035616,9]
[388101676,1759014654301,-500.0,0.00035616,9]
[388101678,1759014654311,-485.1179884,0.00035616,9]
[388101680,1759014654320,-500.0,0.00035616,9]
[388101682,1759014654329,-480.0,0.00035616,9]
[388101684,1759014654339,-500.0,0.00035616,9]
[388101686,1759014654349,-500.0,0.00035616,9]
[388101688,1759014654359,-500.0,0.00035616,9]
[388101690,1759014654368,-480.0,0.00035616,9]
[388101692,1759014654377,-500.0,0.00035616,9]
[388101694,1759014654387,-500.0,0.00035616,9]
[388101696,1759014654396,-857.46,0.00035616,9]
[388101698,1759014654406,-500.0,0.00035616,9]
[388101700,1759014654415,-245.07,0.00035616,9]
[388101702,1759014654425,-893.58,0.00035616,9]
[388101704,1759014654434,-480.0,0.00035616,9]
[388101706,1759014654444,-601.12140561,0.00035616,9]
[388101709,1759014654454,-2374.92,0.00035616,9]
[388101711,1759014654464,-151.0,0.00035616,7]
[388101713,1759014654473,-200.0,0.00035616,9]
[388101714,1759014654485,-151.0,0.00035616,7]
[388101717,1759014654494,-337.0,0.00035641,120]
[388101718,1759014654504,-500.0,0.00035669,30]
[388101720,1759014654514,-500.75007155,0.00035673,5]
[388101722,1759014654524,-500.0,0.00035673,5]
[388101725,1759014654534,-500.0,0.00035673,5]
[388101727,1759014654544,-500.0,0.00035673,5]
[388101729,1759014654554,-326.28396394,0.00035673,5]
[388101730,1759014654563,-500.0,0.00035673,5]
[388101732,1759014654572,-500.0,0.00035673,5]
[388101734,1759014654582,-500.0,0.00035673,5]
[388101736,1759014654591,-500.0,0.00035673,5]
[388101738,1759014654601,-500.0,0.00035673,5]
[388101740,1759014654611,-644.11570221,0.00035673,5]
[388101742,1759014654620,-500.0,0.00035673,5]
[388101744,1759014654629,-500.0,0.00035673,5]
[388101747,1759014654642,-500.0,0.00035673,5]
[388101748,1759014654652,-500.0,0.00035673,2]
[388101751,1759014654661,-500.0,0.00035673,5]
[388101752,1759014654671,-500.0,0.00035673,5]
[388101755,1759014654681,-500.0,0.00035673,5]
[388101756,1759014654690,-150.0,0.00035673,5]
[388101758,1759014654699,-500.0,0.00035673,2]
[388101760,1759014654709,-500.0,0.00035673,5]
[388101762,1759014654718,-500.0,0.00035673,5]
[388101764,1759014654728,-500.0,0.00035673,5]
[388101767,1759014654738,-500.0,0.00035673,3]
[388101769,1759014654748,-500.0,0.00035674,30]
[388101770,1759014654757,-168.0,0.0003568,2]
[388101772,1759014654767,-313.0,0.00035686,2]
[388101775,1759014654777,-18559.16985563,0.0003569,14]
[388101776,1759014654787,-4588.0,0.0003571,2]
[388101778,1759014654796,-500.0,0.00035721,30]
[388101781,1759014654806,-260.0,0.00035748,2]
[388101782,1759014654815,-313.0,0.00035768,2]
[388101784,1759014654824,-904.21932084,0.0003579,2]
[388101786,1759014654836,-5031.51219432,0.0003579,2]
[388101788,1759014654845,-1459.33247012,0.0003579,2]
[388101790,1759014654855,-300.0,0.0003581,5]
[388101792,1759014654864,-313.0,0.00035865,2]
[388101794,1759014654874,-500.0,0.0003587,3]
[388101796,1759014654883,-198.0,0.0003587,3]
[388101798,1759014654893,-151.0,0.0003587,3]
[388101800,1759014654902,-198.74112318,0.0003587,3]
[388101802,1759014654912,-500.0,0.00035873,5]
[388101804,1759014654921,-500.0,0.00035873,5]
[388101806,1759014654931,-626.0020052,0.00035873,5]
[388101809,1759014654940,-500.0,0.00035873,5]
[388101810,1759014654950,-500.0,0.00035873,5]
[388101812,1759014654959,-503.61595425,0.00035873,5]
[388101814,1759014654968,-500.0,0.00035873,5]
[388101816,1759014654978,-500.0,0.00035873,5]
[388101818,1759014654987,-500.0,0.00035873,5]
[388101820,1759014654996,-500.74865934,0.00035873,5]
[388101822,1759014655006,-400.0,0.00035873,5]
[388101824,1759014655015,-575.25942439,0.00035873,5]
[388101826,1759014655025,-500.0,0.00035873,5]
[388101828,1759014655034,-500.0,0.00035873,5]
[388101830,1759014655044,-500.0,0.00035873,5]
[388101832,1759014655053,-500.0,0.00035873,5]
[388101835,1759014655063,-500.0,0.00035873,5]
[388101837,1759014655072,-500.0,0.00035873,5]
[388101839,1759014655082,-500.0,0.00035873,5]
[388101840,1759014655092,-500.0,0.00035873,5]
[388101843,1759014655101,-500.0,0.00035873,5]
[388101844,1759014655112,-500.0,0.00035873,5]
[388101846,1759014655122,-500.0,0.00035873,5]
[388101849,1759014655132,-503.64207553,0.00035873,5]
[388101850,1759014655141,-500.0,0.00035873,5]
[388101853,1759014655152,-203.19238064,0.00035873,5]
[388101854,1759014655161,-500.0,0.00035873,5]
[388101857,1759014655171,-500.0,0.00035873,5]
[388101859,1759014655180,-500.0,0.00035873,5]
[388101866,1759014655241,-500.0,0.00035873,5]
[388101868,1759014655251,-585.34941517,0.00035873,5]
[388101870,1759014655260,-500.0,0.00035873,5]
[388101872,1759014655270,-155.74553295,0.00035873,5]
[388101874,1759014655280,-500.0,0.00035873,5]
[388101876,1759014655289,-500.0,0.00035873,5]
[388101878,1759014655298,-500.0,0.00035873,5]
[388101880,1759014655308,-500.0,0.00035873,5]
[388101882,1759014655318,-500.0,0.00035873,5]
[388101884,1759014655327,-500.0,0.00035873,5]
[388101886,1759014655335,-500.0,0.00035873,5]
[388101888,1759014655345,-500.0,0.00035873,5]
[388101890,1759014655355,-500.0,0.00035873,5]
[388101892,1759014655364,-150.0,0.00035873,5]
[388101894,1759014655373,-500.0,0.00035873,5]
[388101896,1759014655384,-500.0,0.00035873,5]
[388101898,1759014655394,-500.0,0.00035873,5]
[388101900,1759014655403,-500.0,0.00035873,5]
[388101902,1759014655413,-500.0,0.00035873,5]
[388101904,1759014655423,-500.0,0.00035873,5]
[388101906,1759014655434,-500.0,0.00035873,5]
[388101908,1759014655444,-500.0,0.00035873,5]
[388101910,1759014655453,-500.0,0.00035873,5]
[388101912,1759014655462,-529.50832457,0.00035873,5]
[388101914,1759014655472,-500.0,0.00035873,5]
[388101915,1759014655481,-212.02780329,0.00035873,5]
[388101918,1759014655491,-500.0,0.00035874,30]
[388101920,1759014655501,-500.0,0.00035879,14]
[388101922,1759014655510,-200.0,0.00035889,10]
[388101924,1759014655520,-151.0,0.0003589,9]
[388101925,1759014655529,-151.0,0.0003589,9]
[388101927,1759014655539,-480.0,0.0003589,9]
[388101929,1759014655549,-480.0,0.0003589,9]
[388101931,1759014655562,-480.0,0.0003589,9]
[388101933,1759014655572,-480.0,0.0003589,9]
[388101935,1759014655581,-480.0,0.0003589,9]
[388101937,1759014655590,-480.0,0.0003589,9]
[388101939,1759014655599,-480.0,0.0003589,9]
[388101941,1759014655609,-480.0,0.0003589,9]
[388101943,1759014655618,-480.0,0.0003589,9]
[388101945,1759014655627,-800.05,0.0003589,9]
[388101947,1759014655641,-480.0,0.0003589,9]
[388101949,1759014655651,-480.0,0.0003589,9]
[388101951,1759014655660,-480.0,0.0003589,9]
[388101953,1759014655669,-480.0,0.0003589,9]
[388101955,1759014655679,-558.32,0.0003589,9]
[388101957,1759014655688,-480.0,0.0003589,9]
[388101959,1759014655698,-887.42,0.0003589,9]
[388101961,1759014655708,-500.45,0.0003589,9]
[388101963,1759014655720,-480.0,0.0003589,9]
[388101965,1759014655729,-480.0,0.0003589,9]
[388101967,1759014655739,-480.0,0.0003589,9]
[388101969,1759014655749,-480.0,0.0003589,9]
[388101971,1759014655757,-480.0,0.0003589,9]
[388101973,1759014655767,-480.0,0.0003589,9]
[388101975,1759014655777,-480.0,0.0003589,9]
[388101977,1759014655786,-514.91167186,0.0003589,9]
[388101979,1759014655795,-480.0,0.0003589,9]
[388101980,1759014655805,-480.0,0.0003589,9]
[388101983,1759014655816,-480.0,0.0003589,9]
[388101985,1759014655826,-480.0,0.0003589,9]
[388101987,1759014655837,-480.0,0.0003589,9]
[388101989,1759014655846,-480.0,0.0003589,9]
[388101991,1759014655855,-480.0,0.0003589,9]
[388101992,1759014655865,-480.0,0.0003589,9]
[388101993,1759014655874,-480.0,0.0003589,9]
[388101994,1759014655883,-497.97888243,0.0003589,9]
[388101995,1759014655892,-869.15,0.0003589,9]
[388101996,1759014655901,-480.0,0.0003589,9]
[388101997,1759014655910,-480.0,0.0003589,9]
[388101998,1759014655923,-480.0,0.0003589,9]
[388101999,1759014655932,-480.0,0.0003589,9]
[388102000,1759014655942,-480.0,0.0003589,9]
[388102001,1759014655951,-722.35,0.0003589,9]
[388102002,1759014655960,-725.09,0.0003589,9]
[388102003,1759014655970,-480.0,0.0003589,9]
[388102004,1759014655979,-480.0,0.0003589,9]
[388102005,1759014655987,-480.0,0.0003589,9]
[388102006,1759014655997,-480.0,0.0003589,9]
[388102007,1759014656006,-1031.43,0.0003589,9]
[388102008,1759014656015,-480.0,0.0003589,9]
[388102009,1759014656024,-480.0,0.0003589,9]
[388102010,1759014656034,-480.0,0.0003589,9]
[388102011,1759014656043,-480.0,0.0003589,9]
[388102012,1759014656052,-480.0,0.0003589,9]
[388102013,1759014656061,-480.0,0.0003589,9]
[388102014,1759014656071,-571.51,0.0003589,9]
[388102015,1759014656080,-770.91,0.0003589,9]
[388102016,1759014656090,-480.0,0.0003589,9]
[388102017,1759014656103,-480.0,0.0003589,9]
[388102018,1759014656113,-480.0,0.0003589,9]
[388102019,1759014656123,-480.0,0.0003589,9]
[388102020,1759014656133,-809.24,0.0003589,9]
[388102021,1759014656142,-480.0,0.0003589,9]
[388102022,1759014656152,-480.0,0.0003589,9]
[388102023,1759014656162,-480.0,0.0003589,9]
[388102024,1759014656171,-480.0,0.0003589,9]
[388102025,1759014656181,-480.0,0.0003589,9]
[388102026,1759014656191,-717.68,0.0003589,9]
[388102027,1759014656200,-480.0,0.0003589,9]
[388102028,1759014656210,-480.0,0.0003589,9]
[388102030,1759014656220,-480.0,0.0003589,9]
[388102031,1759014656229,-978.22,0.0003589,9]
[388102033,1759014656239,-480.0,0.0003589,9]
[388102035,1759014656249,-480.0,0.0003589,9]
[388102037,1759014656259,-462.5314503,0.0003589,9]
[388102039,1759014656269,-480.0,0.0003589,9]
[388102041,1759014656279,-841.07,0.0003589,9]
[388102043,1759014656290,-480.0,0.0003589,9]
[388102045,1759014656300,-480.0,0.0003589,9]
[388102047,1759014656310,-480.0,0.0003589,9]
[388102049,1759014656320,-480.0,0.0003589,9]
[388102051,1759014656330,-780.51,0.0003589,9]
[388102053,1759014656340,-480.0,0.0003589,9]
[388102055,1759014656350,-480.0,0.0003589,9]
[388102057,1759014656359,-480.0,0.0003589,9]
[388102059,1759014656369,-979.05,0.0003589,9]
[388102061,1759014656380,-480.0,0.0003589,9]
[388102063,1759014656389,-480.0,0.0003589,9]
[388102065,1759014656399,-480.0,0.0003589,9]
[388102067,1759014656409,-480.0,0.0003589,9]
[388102069,1759014656418,-480.0,0.0003589,9]
[388102071,1759014656428,-480.0,0.0003589,9]
[388102073,1759014656439,-480.0,0.0003589,9]
[388102075,1759014656448,-480.0,0.0003589,9]
[388102077,1759014656458,-480.0,0.0003589,9]
[388102079,1759014656468,-480.0,0.0003589,9]
[388102081,1759014656478,-480.0,0.0003589,9]
[388102083,1759014656488,-480.0,0.0003589,9]
[388102085,1759014656498,-488.33041131,0.0003589,9]
[388102087,1759014656510,-480.0,0.0003589,9]
[388102089,1759014656519,-2120.74,0.0003589,9]
[388102091,1759014656529,-480.0,0.0003589,9]
[388102093,1759014656539,-480.0,0.0003589,9]
[388102096,1759014656550,-480.0,0.0003589,9]
[388102097,1759014656560,-480.0,0.0003589,9]
[388102099,1759014656569,-480.0,0.0003589,9]
[388102101,1759014656580,-533.3,0.0003589,9]
[388102103,1759014656590,-480.0,0.0003589,9]
[388102106,1759014656600,-202.93721915,0.0003589,9]
[388102108,1759014656610,-480.0,0.0003589,9]
[388102109,1759014656620,-480.0,0.0003589,9]
[388102112,1759014656629,-480.0,0.0003589,9]
[388102113,1759014656645,-480.0,0.0003589,9]
[388102116,1759014656655,-480.0,0.0003589,9]
[388102117,1759014656665,-480.0,0.0003589,9]
[388102120,1759014656675,-480.0,0.0003589,9]
[388102122,1759014656685,-480.0,0.0003589,9]
[388102124,1759014656695,-691.3,0.0003589,9]
[388102126,1759014656706,-480.0,0.0003589,9]
[388102128,1759014656716,-747.2,0.0003589,9]
[388102130,1759014656726,-480.0,0.0003589,9]
[388102132,1759014656735,-480.0,0.0003589,9]
[388102134,1759014656747,-630.33,0.0003589,9]
[388102136,1759014656757,-480.0,0.0003589,9]
[388102138,1759014656767,-480.0,0.0003589,9]
[388102140,1759014656776,-480.0,0.0003589,9]
[388102142,1759014656787,-848.07,0.0003589,9]
[388102144,1759014656796,-480.0,0.0003589,9]
[388102146,1759014656807,-881.56,0.0003589,9]
[388102148,1759014656817,-928.73,0.0003589,9]
[388102150,1759014656827,-480.0,0.0003589,9]
[388102152,1759014656836,-480.0,0.0003589,9]
[388102154,1759014656846,-480.0,0.0003589,9]
[388102156,1759014656856,-216.40518248,0.0003589,9]
[388102158,1759014656865,-732.33,0.0003589,9]
[388102160,1759014656875,-480.0,0.0003589,9]
[388102162,1759014656884,-500.0,0.0003589,9]
[388102164,1759014656894,-480.0,0.0003589,9]
[388102166,1759014656904,-480.0,0.0003589,9]
[388102168,1759014656914,-798.05,0.0003589,9]
[388102170,1759014656924,-459.97359699,0.0003589,9]
[388102172,1759014656934,-480.0,0.0003589,9]
[388102174,1759014656944,-480.0,0.0003589,9]
[388102176,1759014656954,-224.44468543,0.0003589,9]
[388102178,1759014656963,-758.4,0.0003589,9]
[388102180,1759014656973,-953.76,0.0003589,9]
[388102182,1759014656983,-480.0,0.0003589,9]
[388102184,1759014656992,-567.66,0.0003589,9]
[388102186,1759014657002,-480.0,0.0003589,9]
[388102188,1759014657011,-480.0,0.0003589,9]
[388102190,1759014657021,-548.58427824,0.0003589,9]
[388102192,1759014657031,-480.0,0.0003589,9]
[388102194,1759014657041,-480.0,0.0003589,9]
[388102196,1759014657051,-491.75437231,0.0003589,9]
[388102198,1759014657060,-480.0,0.0003589,9]
[388102200,1759014657069,-480.0,0.0003589,9]
[388102202,1759014657079,-1107.57,0.0003589,9]
[388102204,1759014657089,-480.0,0.0003589,9]
[388102206,1759014657099,-1000.0,0.0003589,9]
[388102208,1759014657108,-480.0,0.0003589,9]
[388102210,1759014657117,-480.0,0.0003589,9]
[388102212,1759014657127,-947.42,0.0003589,9]
[388102214,1759014657137,-480.0,0.0003589,9]
[388102216,1759014657147,-480.0,0.0003589,9]
[388102218,1759014657156,-157.2061631,0.0003589,9]
[388102220,1759014657165,-986.9,0.0003589,9]
[388102222,1759014657175,-480.0,0.0003589,9]
[388102224,1759014657184,-480.0,0.0003589,9]
[388102226,1759014657194,-480.0,0.0003589,9]
[388102228,1759014657204,-480.0,0.0003589,9]
[388102230,1759014657214,-480.0,0.0003589,2]
[388102232,1759014657223,-480.0,0.0003589,9]
[388102234,1759014657233,-480.0,0.0003589,9]
[388102236,1759014657243,-480.0,0.0003589,9]
[388102238,1759014657253,-480.0,0.0003589,9]
[388102240,1759014657262,-213.52741714,0.0003589,9]
[388102242,1759014657272,-1161.11,0.0003589,9]
[388102244,1759014657282,-480.0,0.0003589,9]
[388102246,1759014657292,-638.38,0.0003589,9]
[388102248,1759014657303,-480.0,0.0003589,9]
[388102251,1759014657314,-480.0,0.0003589,9]
[388102252,1759014657323,-1691.04,0.0003589,9]
[388102255,1759014657333,-480.0,0.0003589,9]
[388102257,1759014657344,-480.0,0.0003589,9]
[388102258,1759014657353,-480.0,0.0003589,9]
[388102261,1759014657363,-480.0,0.0003589,9]
[388102263,1759014657373,-480.0,0.0003589,9]
[388102265,1759014657383,-480.0,0.0003589,9]
[388102267,1759014657393,-1341.47,0.0003589,9]
[388102269,1759014657403,-1216.57,0.0003589,9]
[388102271,1759014657413,-480.0,0.0003589,9]
[388102273,1759014657423,-587.24109811,0.0003589,9]
[388102275,1759014657433,-480.0,0.0003589,9]
[388102277,1759014657443,-480.0,0.0003589,9]
[388102279,1759014657454,-480.0,0.0003589,9]
[388102281,1759014657464,-480.0,0.0003589,9]
[388102283,1759014657474,-794.45,0.0003589,9]
[388102285,1759014657485,-480.0,0.0003589,9]
[388102287,1759014657495,-978.68,0.0003589,9]
[388102289,1759014657506,-480.0,0.0003589,9]
[388102291,1759014657516,-487.9785182,0.0003589,9]
[388102293,1759014657526,-480.0,0.0003589,9]
[388102295,1759014657536,-480.0,0.0003589,9]
[388102297,1759014657546,-938.26,0.0003589,9]
[388102299,1759014657556,-480.0,0.0003589,9]
[388102301,1759014657567,-480.0,0.0003589,9]
[388102303,1759014657577,-693.58,0.0003589,9]
[388102305,1759014657587,-480.0,0.0003589,9]
[388102307,1759014657597,-480.0,0.0003589,9]
[388102309,1759014657607,-345.79696999,0.0003589,9]
[388102311,1759014657617,-480.0,0.0003589,9]
[388102313,1759014657627,-480.0,0.0003589,9]
[388102315,1759014657640,-480.0,0.0003589,9]
[388102317,1759014657650,-824.92,0.0003589,9]
[388102319,1759014657660,-480.0,0.0003589,9]
[388102321,1759014657670,-450.50308987,0.0003589,9]
[388102323,1759014657680,-973.65,0.0003589,9]
[388102325,1759014657689,-480.0,0.0003589,9]
[388102327,1759014657699,-480.0,0.0003589,9]
[388102329,1759014657708,-976.7,0.0003589,9]
[388102331,1759014657720,-592.67,0.0003589,9]
[388102333,1759014657731,-480.0,0.0003589,9]
[388102335,1759014657741,-480.0,0.0003589,9]
[388102337,1759014657751,-480.0,0.0003589,9]
[388102339,1759014657761,-619.37,0.0003589,9]
[388102341,1759014657771,-480.0,0.0003589,9]
[388102343,1759014657781,-480.0,0.0003589,9]
[388102345,1759014657790,-158.92,0.0003589,9]
[388102347,1759014657800,-480.0,0.0003589,9]
[388102349,1759014657811,-480.0,0.0003589,9]
[388102351,1759014657821,-480.0,0.0003589,9]
[388102353,1759014657831,-480.0,0.0003589,9]
[388102355,1759014657841,-480.0,0.0003589,9]
[388102358,1759014657852,-628.27,0.0003589,9]
[388102360,1759014657862,-566.51814038,0.0003589,9]
[388102362,1759014657872,-480.0,0.0003589,9]
[388102364,1759014657882,-480.0,0.0003589,9]
[388102366,1759014657893,-480.0,0.0003589,9]
[388102368,1759014657903,-480.0,0.0003589,9]
[388102370,1759014657913,-486.85,0.0003589,9]
[388102372,1759014657923,-551.56,0.0003589,9]
[388102374,1759014657933,-480.0,0.0003589,9]
[388102376,1759014657943,-480.0,0.0003589,9]
[388102378,1759014657952,-890.39,0.0003589,9]
[388102380,1759014657962,-480.0,0.0003589,9]
[388102382,1759014657972,-480.0,0.0003589,9]
[388102384,1759014657982,-607.35,0.0003589,9]
[388102386,1759014657992,-480.0,0.0003589,9]
[388102388,1759014658002,-656.71,0.0003589,9]
[388102390,1759014658012,-480.0,0.0003589,9]
[388102393,1759014658022,-480.0,0.0003589,9]
[388102394,1759014658032,-480.0,0.0003589,9]
[388102397,1759014658042,-546.93,0.0003589,9]